bitfinex/quotes_BTCUSD_20220105
["timestamp","ask_amount","ask_price","bid_price","bid_amount"]
[1641411583018,0.65653,45692.0,45690.0,0.412428]
[1641411583419,0.65653,45692.0,45690.0,1.65032085]
[1641411584067,0.65653,45692.0,45691.0,1.23789285]
[1641411584265,0.65653,45692.0,45691.0,1.60032085]
[1641411585167,0.65153,45692.0,45691.0,1.73147107]
[1641411586171,0.65153,45692.0,45691.0,3.21273909]
[1641411586367,0.65053,45692.0,45691.0,3.21273909]
[1641411586567,0.65053,45692.0,45691.0,1.73273909]
[1641411586766,0.65053,45692.0,45691.0,1.83273909]
[1641411587168,0.65053,45692.0,45691.0,1.88273909]
[1641411587368,0.65053,45692.0,45691.0,1.78273909]
[1641411587565,0.65053,45692.0,45691.0,1.88273909]
[1641411587813,0.65053,45692.0,45691.0,1.78273909]
[1641411588016,0.65053,45692.0,45691.0,1.88273909]
[1641411588212,0.65053,45692.0,45691.0,1.98273909]
[1641411588417,0.65053,45692.0,45691.0,1.88273909]
[1641411589015,0.65053,45692.0,45691.0,0.64484624]
[1641411589415,0.65053,45692.0,45691.0,0.79484624]
[1641411589615,0.65053,45692.0,45691.0,0.69484624]
[1641411589817,0.65053,45692.0,45691.0,0.64484624]
[1641411590216,0.65053,45692.0,45691.0,0.49484624]
[1641411590615,0.55053,45692.0,45691.0,0.49484624]
[1641411591775,0.55053,45692.0,45691.0,0.64484624]
[1641411592178,0.55053,45692.0,45691.0,0.36369602]
[1641411592575,0.55053,45692.0,45691.0,0.41369602]
[1641411592775,0.55053,45692.0,45691.0,0.36369602]
[1641411592975,0.55053,45692.0,45691.0,0.362428]
[1641411593177,0.54553,45692.0,45689.0,0.18369995]
[1641411593579,0.54553,45692.0,45690.0,0.362428]
[1641411594180,0.54553,45692.0,45690.0,0.412428]
[1641411594379,0.54553,45692.0,45691.0,1.832428]
[1641411594577,0.54553,45692.0,45691.0,1.932428]
[1641411594977,0.54053,45692.0,45691.0,1.932428]
[1641411595214,0.54053,45692.0,45691.0,0.462428]
[1641411595814,0.54053,45692.0,45691.0,0.362428]
[1641411596816,0.54053,45692.0,45691.0,0.462428]
[1641411597016,0.54053,45692.0,45691.0,0.912428]
[1641411597317,0.54053,45692.0,45691.0,0.462428]
[1641411598016,0.54053,45692.0,45691.0,1.262428]
[1641411598819,0.54053,45692.0,45691.0,0.512428]
[1641411599062,0.54053,45692.0,45691.0,0.362428]
[1641411599662,0.54053,45692.0,45691.0,0.412428]
[1641411599863,0.54053,45692.0,45691.0,0.512428]
[1641411600063,0.54053,45692.0,45691.0,0.362428]
[1641411600864,0.54053,45692.0,45689.0,0.18370308]
[1641411601068,0.54053,45692.0,45690.0,0.362428]
[1641411601865,0.54053,45692.0,45689.0,0.18370308]
[1641411602813,0.54053,45692.0,45690.0,0.17154593]
[1641411603014,0.54053,45692.0,45690.0,0.22154593]
[1641411603316,0.54053,45692.0,45691.0,0.362428]
[1641411604715,0.54053,45692.0,45689.0,0.00035105]
[1641411605115,0.54053,45692.0,45685.0,0.05594493]
[1641411605315,0.54053,45692.0,45686.0,0.05]
[1641411605516,0.54053,45692.0,45686.0,0.00035099]
[1641411605917,0.362428,45691.0,45686.0,0.00035099]
[1641411606317,0.54053,45690.0,45686.0,0.00035099]
[1641411606571,0.362428,45689.0,45686.0,0.00035099]
[1641411606776,0.54053,45688.0,45686.0,0.00035099]
[1641411606975,1.832428,45687.0,45686.0,0.00035099]
[1641411607172,2.372958,45687.0,45686.0,0.00035099]
[1641411608174,2.367958,45687.0,45686.0,0.00035099]
[1641411608571,0.897958,45687.0,45686.0,0.00035099]
[1641411608779,1.04274606,45687.0,45686.0,9.9e-07]
[1641411608978,1.14812257,45687.0,45686.0,9.9e-07]
[1641411609178,2.20512257,45687.0,45686.0,9.9e-07]
[1641411609378,1.64812257,45687.0,45686.0,9.9e-07]
[1641411609575,3.09732257,45687.0,45686.0,9.9e-07]
[1641411609777,2.99732257,45687.0,45686.0,9.9e-07]
[1641411609975,2.99732257,45687.0,45667.0,0.16883181]
[1641411609976,3.04732257,45687.0,45667.0,0.16883181]
[1641411610219,2.89732257,45687.0,45667.0,0.16883181]
[1641411610418,0.38992603,45685.0,45668.0,0.40645707]
[1641411610621,1.72900134,45684.0,45663.0,0.00129448]
[1641411610818,1.72900134,45684.0,45653.0,0.01065099]
[1641411610819,3.28777785,45684.0,45653.0,0.01065099]
[1641411611020,0.00120962,45681.0,45657.0,0.00128512]
[1641411611221,0.58403,45680.0,45659.0,0.054758]
[1641411611622,0.77105065,45680.0,45665.0,0.15735663]
[1641411611819,0.38366372,45676.0,45660.0,0.44857888]
[1641411612023,0.054758,45674.0,45661.0,0.05475471]
[1641411612519,0.054758,45674.0,45660.0,0.49857888]
[1641411612920,0.054758,45674.0,45662.0,0.16200956]
[1641411613420,0.902962,45673.0,45657.0,0.18299756]
[1641411613620,0.902962,45673.0,45666.0,0.00034442]
[1641411613621,0.054761,45670.0,45666.0,0.00034442]
[1641411613822,0.54053,45669.0,45666.0,0.00034442]
[1641411615172,0.54053,45669.0,45667.0,0.13741058]
[1641411615674,0.54053,45669.0,45667.0,0.18741058]
[1641411615873,0.54053,45669.0,45667.0,0.13741058]
[1641411616173,3e-05,45669.0,45666.0,0.00034442]
[1641411616474,3e-05,45669.0,45667.0,0.362432]
[1641411616676,3e-05,45669.0,45666.0,0.00034442]
[1641411617479,3e-05,45669.0,45666.0,0.27245305]
[1641411617723,3e-05,45669.0,45666.0,0.32720205]
[1641411618126,3e-05,45669.0,45666.0,0.05509342]
[1641411618324,3e-05,45669.0,45667.0,0.362432]
[1641411618523,3e-05,45669.0,45667.0,0.41717852]
[1641411618922,3e-05,45669.0,45668.0,0.624746]
[1641411619123,3e-05,45669.0,45668.0,0.987178]
[1641411619323,3e-05,45669.0,45668.0,0.467178]
[1641411620026,3e-05,45669.0,45668.0,0.75373569]
[1641411620225,3e-05,45669.0,45668.0,0.85373569]
[1641411620423,3e-05,45669.0,45668.0,0.90373569]
[1641411620624,3e-05,45669.0,45668.0,1.36723569]
[1641411620824,1.291025,45701.0,45683.0,0.054726]
[1641411621171,1.291025,45701.0,45681.0,0.109451]
[1641411621172,0.65661,45694.0,45681.0,0.109451]
[1641411621323,0.65661,45694.0,45686.0,6.806e-05]
[1641411621572,0.362432,45693.0,45686.0,6.806e-05]
[1641411621772,0.65661,45692.0,45686.0,6.806e-05]
[1641411622173,0.65661,45692.0,45686.0,0.16235053]
[1641411622873,0.65661,45692.0,45686.0,0.5196412]
[1641411623374,0.65661,45692.0,45686.0,0.16235053]
[1641411623574,0.65161,45692.0,45686.0,0.16235053]
[1641411623774,0.65161,45692.0,45686.0,6.806e-05]
[1641411626818,0.70161,45692.0,45686.0,6.806e-05]
[1641411627218,0.362432,45691.0,45686.0,6.806e-05]
[1641411627418,0.65161,45690.0,45686.0,6.806e-05]
[1641411627623,0.362432,45689.0,45686.0,6.806e-05]
[1641411627818,0.65161,45688.0,45686.0,6.806e-05]
[1641411628020,1.832432,45687.0,45686.0,6.806e-05]
[1641411628217,2.538784,45687.0,45675.0,0.34974767]
[1641411628419,0.45714338,45683.0,45675.0,0.05]
[1641411628621,0.96215613,45682.0,45670.0,0.109477]
[1641411628821,0.96215613,45682.0,45665.0,0.05603035]
[1641411629280,0.65161,45682.0,45665.0,0.05603035]
[1641411629478,0.95990246,45682.0,45668.0,0.14301487]
[1641411629678,1.01464846,45682.0,45671.0,0.00034432]
[1641411631080,0.706356,45682.0,45671.0,0.00034432]
[1641411631879,0.65161,45682.0,45671.0,0.00034432]
[1641411632181,0.65161,45682.0,45672.0,7.06e-05]
[1641411632578,0.65161,45682.0,45675.0,0.14940117]
[1641411632834,0.65161,45682.0,45677.0,0.15617394]
[1641411633229,0.65161,45682.0,45677.0,0.21090794]
[1641411633430,0.65161,45682.0,45677.0,0.26090794]
[1641411633431,0.64161,45682.0,45677.0,0.26090794]
[1641411633630,0.64161,45682.0,45681.0,0.35964128]
[1641411634737,1e-05,45682.0,45681.0,1.95369986]
[1641411635033,1e-05,45682.0,45681.0,2.51436275]
[1641411635232,1e-05,45682.0,45681.0,2.41436275]
[1641411635831,4.013e-05,45687.0,45685.0,0.362432]
[1641411636034,4.013e-05,45687.0,45686.0,1.930651]
[1641411636236,2.0252,45706.0,45686.0,1.97722985]
[1641411636489,2.0252,45706.0,45697.0,0.0012057]
[1641411636683,1.1357,45706.0,45697.0,0.0012057]
[1641411636881,1.1357,45706.0,45701.0,0.1770706]
[1641411637083,0.00537651,45713.0,45701.0,0.2270706]
[1641411637283,0.00537651,45713.0,45701.0,0.38074738]
[1641411637483,0.00537651,45713.0,45702.0,0.362432]
[1641411637685,0.00537651,45713.0,45703.0,0.00034685]
[1641411637885,0.362432,45712.0,45703.0,0.00034685]
[1641411638091,0.00537651,45708.0,45703.0,0.00034685]
[1641411638286,0.362432,45704.0,45703.0,0.00034685]
[1641411638487,2.488782,45704.0,45703.0,0.00034685]
[1641411638686,2.538782,45704.0,45703.0,0.00034685]
[1641411638886,2.8628525,45704.0,45703.0,0.00034685]
[1641411639086,2.538782,45704.0,45703.0,0.00034685]
[1641411639487,1.47,45703.0,45691.0,0.05543543]
[1641411639692,0.711072,45702.0,45691.0,0.05543543]
[1641411639889,0.761072,45702.0,45691.0,0.05543543]
[1641411640087,0.70635,45702.0,45691.0,0.05543543]
[1641411640323,0.70635,45702.0,45688.0,0.4224317]
[1641411641021,0.65635,45702.0,45688.0,0.4724317]
[1641411641226,0.65635,45702.0,45690.0,0.18864837]
[1641411641421,0.65635,45702.0,45690.0,0.23864837]
[1641411641621,0.65635,45702.0,45692.0,0.00124167]
[1641411642023,0.65635,45702.0,45695.0,0.0547188]
[1641411642224,0.65635,45702.0,45696.0,0.36281627]
[1641411642424,0.65635,45702.0,45697.0,0.15778482]
[1641411643025,0.65635,45702.0,45692.0,0.05596418]
[1641411643026,0.362432,45701.0,45692.0,0.05596418]
[1641411643230,0.362432,45701.0,45685.0,0.00129813]
[1641411643231,1.018782,45700.0,45685.0,0.00129813]
[1641411643627,0.65135,45700.0,45685.0,0.00129813]
[1641411644081,0.054728,45698.0,45686.0,0.15607636]
[1641411644281,0.65135,45700.0,45686.0,0.15607636]
[1641411644482,0.65135,45700.0,45686.0,0.20607636]
[1641411645182,0.65135,45700.0,45694.0,0.17600059]
[1641411645584,0.65135,45700.0,45695.0,0.00034618]
[1641411647082,0.362432,45699.0,45695.0,0.00034618]
[1641411647283,0.32932525,45698.0,45695.0,0.00034618]
[1641411647483,1.013782,45697.0,45695.0,0.00034618]
[1641411647922,1.068514,45697.0,45695.0,0.00034618]
[1641411648726,1.013782,45697.0,45695.0,0.00034618]
[1641411648927,0.65135,45697.0,45695.0,0.00034618]
[1641411649223,0.65135,45697.0,45691.0,0.24942612]
[1641411649425,0.65135,45697.0,45692.0,0.18173049]
[1641411649723,0.65135,45697.0,45692.0,0.12700785]
[1641411649922,0.65135,45697.0,45694.0,0.054718]
[1641411650326,0.65135,45697.0,45691.0,0.30067123]
[1641411650524,0.65135,45697.0,45695.0,0.42682362]
[1641411651125,0.65135,45697.0,45695.0,0.05]
[1641411651326,0.65135,45697.0,45694.0,0.10471993]
[1641411651568,0.65135,45697.0,45694.0,0.05471993]
[1641411652367,0.65135,45697.0,45694.0,0.50465401]
[1641411652567,0.65135,45697.0,45694.0,0.55465401]
[1641411652968,0.65135,45697.0,45694.0,0.60937001]
[1641411653967,0.65135,45697.0,45694.0,0.55465401]
[1641411654769,0.65135,45697.0,45694.0,0.60937001]
[1641411655069,0.65135,45697.0,45694.0,0.76408601]
[1641411655323,0.65135,45697.0,45695.0,0.362432]
[1641411655623,0.65135,45697.0,45695.0,0.10942563]
[1641411655923,0.65135,45697.0,45695.0,0.05471226]
[1641411656128,0.65135,45697.0,45696.0,0.054713]
[1641411656522,0.65135,45697.0,45696.0,0.16413863]
[1641411656823,0.65135,45697.0,45696.0,0.21413863]
[1641411658030,0.65135,45697.0,45696.0,0.57657063]
[1641411658428,0.65135,45697.0,45696.0,2.14657063]
[1641411658632,0.65135,45697.0,45696.0,2.21195063]
[1641411658633,0.167212,45697.0,45696.0,2.21195063]
[1641411658831,0.167212,45697.0,45696.0,2.14657063]
[1641411659070,0.167212,45697.0,45696.0,2.14157063]
[1641411660798,0.167212,45697.0,45696.0,0.67157063]
[1641411660972,0.167212,45697.0,45696.0,0.57157063]
[1641411661473,0.167212,45697.0,45696.0,1.70157063]
[1641411662171,0.16602413,45697.0,45696.0,1.70157063]
[1641411662828,0.34666681,45719.0,45699.0,1.5943311]
[1641411663034,0.34666681,45719.0,45718.0,0.00124438]
[1641411663035,0.004,45719.0,45718.0,0.00124438]
[1641411663235,0.0001,45719.0,45718.0,1.62361438]
[1641411663429,0.0001,45719.0,45718.0,2.03604638]
[1641411663628,0.004,45729.0,45720.0,1.22]
[1641411663833,0.004,45729.0,45728.0,0.00129431]
[1641411664029,0.66005,45729.0,45728.0,0.00129431]
[1641411664229,0.66005,45729.0,45726.0,0.054676]
[1641411664431,0.362432,45728.0,45720.0,0.0012901]
[1641411664829,0.362432,45728.0,45711.0,0.00127214]
[1641411665029,0.71474,45729.0,45715.0,0.05469]
[1641411665030,0.05,45727.0,45715.0,0.05469]
[1641411665228,0.39346023,45728.0,45717.0,0.00126433]
[1641411665828,0.66005,45729.0,45717.0,0.00126433]
[1641411666232,0.66005,45729.0,45719.0,0.054686]
[1641411666482,0.66005,45729.0,45720.0,0.20032627]
[1641411666872,0.66005,45729.0,45717.0,0.00126433]
[1641411667674,0.05469126,45725.0,45717.0,0.00126433]
[1641411667873,0.13740922,45724.0,45707.0,0.23220692]
[1641411668075,0.054696,45722.0,45709.0,0.00125946]
[1641411668476,0.31486338,45721.0,45709.0,0.00125946]
[1641411668974,0.3380208,45717.0,45709.0,0.00125946]
[1641411670317,0.0547,45720.0,45709.0,0.00125946]
[1641411670520,0.159397,45724.0,45709.0,0.20803772]
[1641411670521,0.054699,45721.0,45709.0,0.20803772]
[1641411671319,0.054699,45721.0,45709.0,0.00125946]
[1641411671824,0.49330757,45718.0,45709.0,0.00125946]
[1641411672019,0.43860557,45718.0,45709.0,0.00125946]
[1641411672923,0.85794398,45729.0,45717.0,0.00120689]
[1641411673124,0.66005,45729.0,45724.0,0.17054218]
[1641411673322,0.66005,45729.0,45717.0,0.08475689]
[1641411673323,0.66005,45729.0,45718.0,0.28515756]
[1641411673522,0.66005,45729.0,45726.0,0.00122195]
[1641411674772,0.65505,45729.0,45726.0,0.05590095]
[1641411674974,0.65505,45729.0,45728.0,0.00126481]
[1641411675373,0.65505,45729.0,45719.0,0.24312276]
[1641411675573,0.65505,45729.0,45720.0,0.00126441]
[1641411675974,0.65505,45729.0,45726.0,0.00127101]
[1641411676978,0.65505,45729.0,45724.0,0.14988805]
[1641411677176,0.65505,45729.0,45724.0,0.20456805]
[1641411680624,0.65505,45729.0,45721.0,0.109357]
[1641411680625,0.70505,45729.0,45721.0,0.109357]
[1641411680827,0.70505,45729.0,45714.0,0.00125546]
[1641411680828,0.05469258,45722.0,45714.0,0.00125546]
[1641411681134,0.11002369,45721.0,45707.0,0.00120802]
[1641411681577,0.42518514,45715.0,45707.0,0.00120802]
[1641411681975,0.42227169,45715.0,45707.0,0.00120802]
[1641411682977,0.0547015,45714.0,45707.0,0.00120802]
[1641411683580,0.42227169,45715.0,45707.0,0.00120802]
[1641411684980,0.05470341,45712.0,45707.0,0.00120802]
[1641411685635,0.42227169,45715.0,45702.0,0.05504501]
[1641411685636,0.3174679,45711.0,45702.0,0.05504501]
[1641411685836,0.3174679,45711.0,45702.0,0.00033901]
[1641411686035,0.362432,45710.0,45702.0,0.00033901]
[1641411686236,0.04971369,45708.0,45702.0,0.00033901]
[1641411686434,0.362432,45707.0,45702.0,0.00033901]
[1641411686636,0.417148,45707.0,45702.0,0.00033901]
[1641411686835,0.42460433,45706.0,45702.0,0.00033901]
[1641411687937,0.41714623,45705.0,45702.0,0.00033901]
[1641411688976,0.47186323,45705.0,45702.0,0.00033901]
[1641411689371,0.10943123,45705.0,45702.0,0.00033901]
[1641411689772,0.10943123,45705.0,45693.0,0.054716]
[1641411689973,0.0547158,45702.0,45693.0,0.054716]
[1641411691174,0.0547158,45702.0,45693.0,0.109431]
[1641411691374,0.0547158,45702.0,45695.0,0.054715]
[1641411691976,0.05471724,45700.0,45690.0,0.11450783]
[1641411692176,0.05471724,45700.0,45692.0,0.12553264]
[1641411692827,0.05471724,45700.0,45691.0,0.054718]
[1641411693024,0.05471724,45700.0,45691.0,0.22321028]
[1641411693223,0.04971724,45700.0,45693.0,0.054717]
[1641411693627,0.43622991,45699.0,45694.0,0.00033619]
[1641411693827,0.58848608,45698.0,45694.0,0.00033619]
[1641411694025,0.0435,45697.0,45694.0,0.00033619]
[1641411694224,0.362432,45696.0,45694.0,0.00033619]
[1641411694425,2.12505,45695.0,45694.0,0.00033619]
[1641411694624,2.48373224,45695.0,45694.0,0.00033619]
[1641411694924,2.53373224,45695.0,45694.0,0.00033619]
[1641411695527,2.68373224,45695.0,45694.0,0.00033619]
[1641411695728,2.48373224,45695.0,45694.0,0.00033619]
[1641411695929,1.01373224,45695.0,45694.0,0.00033619]
[1641411696142,0.65130024,45695.0,45694.0,0.00033619]
[1641411696978,1.17130024,45695.0,45694.0,0.00033619]
[1641411697176,1.53373224,45695.0,45694.0,0.00033619]
[1641411698179,1.58373224,45695.0,45694.0,0.00033619]
[1641411698380,1.53373224,45695.0,45694.0,0.00033619]
[1641411698679,1.58373224,45695.0,45694.0,0.00033619]
[1641411698882,2.53373224,45695.0,45694.0,0.00033619]
[1641411699081,1.58373224,45695.0,45694.0,0.00033619]
[1641411699283,1.77723224,45695.0,45694.0,0.00033619]
[1641411699483,1.87723224,45695.0,45694.0,0.00033619]
[1641411699887,2.82723224,45695.0,45694.0,0.00033619]
[1641411700082,2.82723224,45695.0,45679.0,0.00011]
[1641411700323,0.36936871,45685.0,45679.0,0.00011]
[1641411700625,0.65130024,45684.0,45679.0,0.00011]
[1641411701724,0.65130024,45684.0,45680.0,0.00033956]
[1641411702322,0.68130024,45684.0,45680.0,0.00033956]
[1641411702522,0.63130024,45684.0,45680.0,0.00033956]
[1641411702724,0.62630024,45684.0,45680.0,0.00033956]
[1641411703322,0.67630024,45684.0,45680.0,0.00033956]
[1641411703990,0.47192803,45683.0,45680.0,0.00033956]
[1641411704183,2.42269195,45682.0,45680.0,0.00033956]
[1641411704383,2.78512395,45682.0,45680.0,0.00033956]
[1641411704582,2.50873224,45682.0,45680.0,0.00033956]
[1641411704783,1.92079762,45682.0,45680.0,0.00033956]
[1641411704984,1.37079762,45682.0,45680.0,0.00033956]
[1641411705183,1.37079762,45682.0,45679.0,0.00011]
[1641411705589,1.37079762,45682.0,45679.0,0.16514059]
[1641411705590,0.62630024,45682.0,45679.0,0.16514059]
[1641411705789,0.62630024,45682.0,45681.0,0.00406623]
[1641411705984,0.62630024,45682.0,45681.0,0.15344783]
[1641411706385,0.62630024,45682.0,45681.0,0.15467922]
[1641411707384,0.62630024,45682.0,45681.0,1.39301932]
[1641411707584,0.62630024,45682.0,45681.0,1.75545132]
[1641411707833,0.62630024,45682.0,45681.0,3.29895132]
[1641411708135,0.62630024,45682.0,45681.0,2.29895132]
[1641411708630,0.62630024,45682.0,45681.0,2.14895132]
[1641411708830,0.62630024,45682.0,45681.0,2.29895132]
[1641411709029,0.62630024,45682.0,45681.0,1.89895132]
[1641411709630,0.62630024,45682.0,45681.0,1.64956972]
[1641411709830,0.62630024,45682.0,45681.0,0.36772962]
[1641411710029,0.62630024,45682.0,45681.0,0.00406623]
[1641411716726,0.62130024,45682.0,45681.0,0.00406623]
[1641411716921,0.60630024,45682.0,45681.0,0.00406623]
[1641411717725,0.60630024,45682.0,45681.0,0.27003142]
[1641411718323,0.60630024,45682.0,45681.0,0.39921349]
[1641411718984,0.60630024,45682.0,45681.0,0.85161021]
[1641411719274,0.60630024,45682.0,45681.0,1.36532974]
[1641411719474,0.60630024,45682.0,45681.0,1.21532974]
[1641411719874,0.60630024,45682.0,45681.0,1.47477974]
[1641411720776,0.60630024,45682.0,45681.0,2.56827974]
[1641411720980,2.4e-07,45682.0,45681.0,1.98670095]
[1641411721186,0.9787,45705.0,45695.0,0.00128422]
[1641411721377,0.9787,45705.0,45695.0,0.13828922]
[1641411721579,1.3844,45708.0,45697.0,1.53287426]
[1641411721780,1.089,45708.0,45697.0,1.89654601]
[1641411721980,1.089,45708.0,45697.0,2.2640612]
[1641411722177,2.41963664,45723.0,45697.0,2.72479137]
[1641411722178,0.49496416,45718.0,45697.0,2.72479137]
[1641411722379,0.4402623,45718.0,45714.0,0.1514179]
[1641411722579,1.018662,45717.0,45714.0,0.1514179]
[1641411723226,0.65623,45717.0,45714.0,0.1514179]
[1641411723426,0.65123,45717.0,45714.0,0.1514179]
[1641411723827,0.362432,45716.0,45708.0,0.2808041]
[1641411724029,0.705929,45717.0,45706.0,0.00123383]
[1641411724628,0.705929,45717.0,45698.0,0.43545328]
[1641411724828,0.755929,45717.0,45701.0,0.1438553]
[1641411725028,0.05470693,45712.0,45702.0,0.3344416]
[1641411725227,0.05470693,45712.0,45703.0,0.25664361]
[1641411725228,0.37056524,45710.0,45703.0,0.25664361]
[1641411725428,0.37056524,45710.0,45702.0,0.054705]
[1641411725628,0.42056524,45710.0,45703.0,0.25834649]
[1641411725828,0.42056524,45710.0,45702.0,0.05504403]
[1641411726029,0.42056524,45710.0,45702.0,0.00033903]
[1641411726030,0.47527369,45710.0,45702.0,0.00033903]
[1641411726229,0.054707,45711.0,45707.0,0.14951963]
[1641411726496,0.054707,45711.0,45708.0,0.26118854]
[1641411726689,0.054707,45711.0,45708.0,0.25402793]
[1641411726892,1.18966063,45695.0,45688.0,1.442]
[1641411727092,1.18966063,45695.0,45693.0,0.23237553]
[1641411727288,1.18966063,45695.0,45694.0,0.00122522]
[1641411728088,1.18966063,45695.0,45694.0,0.28586851]
[1641411728290,1.18966063,45695.0,45694.0,0.64830051]
[1641411728691,1.18966063,45695.0,45694.0,0.74830051]
[1641411729291,1.18966063,45695.0,45694.0,1.98625839]
[1641411730093,1.18966063,45695.0,45694.0,1.88625839]
[1641411730094,1.18466063,45695.0,45694.0,1.88625839]
[1641411730326,1.18466063,45695.0,45694.0,1.74054207]
[1641411730526,1.17514063,45695.0,45694.0,3.29404207]
[1641411730733,0.25185028,45695.0,45694.0,3.35942207]
[1641411730925,0.01222729,45700.0,45695.0,0.06237972]
[1641411731128,0.01179259,45700.0,45699.0,0.81368984]
[1641411731326,0.01179259,45700.0,45699.0,0.85718984]
[1641411731525,0.01179259,45700.0,45699.0,1.06132779]
[1641411731729,0.01179259,45700.0,45699.0,2.74757438]
[1641411732229,0.28784698,45719.0,45699.0,2.80226438]
[1641411732426,0.05469,45720.0,45713.0,0.16975878]
[1641411733726,0.05469,45720.0,45715.0,0.054689]
[1641411734379,0.109378,45722.0,45715.0,0.054689]
[1641411734580,0.109378,45722.0,45716.0,0.00127033]
[1641411734581,0.65619,45721.0,45716.0,0.00127033]
[1641411734980,0.65619,45721.0,45717.0,0.054686]
[1641411735182,0.65619,45721.0,45718.0,0.25962683]
[1641411735382,0.65619,45721.0,45720.0,0.79586096]
[1641411735584,0.65619,45721.0,45720.0,0.89713035]
[1641411735984,0.65619,45721.0,45720.0,1.65306235]
[1641411736186,0.65619,45721.0,45720.0,1.72516753]
[1641411736387,0.65619,45721.0,45720.0,1.82516753]
[1641411736984,0.65619,45721.0,45720.0,1.70044417]
[1641411737390,0.65619,45721.0,45720.0,1.83263606]
[1641411737833,0.65619,45721.0,45720.0,0.91699382]
[1641411738033,0.65619,45721.0,45720.0,1.32161125]
[1641411738231,0.65619,45721.0,45720.0,1.31210205]
[1641411738630,0.65619,45721.0,45720.0,1.04918731]
[1641411738830,0.65619,45721.0,45720.0,0.56699382]
[1641411739229,0.65619,45721.0,45720.0,0.40720864]
[1641411739830,0.65119,45721.0,45720.0,0.40720864]
[1641411740334,0.65119,45721.0,45720.0,0.60052626]
[1641411740733,0.65119,45721.0,45720.0,0.36370864]
[1641411740931,0.65119,45721.0,45719.0,0.054682]
[1641411741681,0.65119,45721.0,45714.0,0.05468404]
[1641411741682,0.65119,45721.0,45714.0,0.109371]
[1641411741985,0.70119,45721.0,45708.0,0.10937205]
[1641411742281,0.70119,45721.0,45706.0,0.35]
[1641411742282,0.99614972,45721.0,45707.0,0.00129057]
[1641411742481,0.94550058,45721.0,45707.0,0.00129057]
[1641411742884,0.9471485,45721.0,45707.0,0.14363189]
[1641411743084,0.65119,45721.0,45707.0,0.00129057]
[1641411743482,0.70119,45721.0,45707.0,0.00129057]
[1641411743684,0.65119,45721.0,45710.0,0.054695]
[1641411744184,0.70119,45721.0,45710.0,0.054695]
[1641411744386,0.65119,45721.0,45710.0,0.054695]
[1641411747039,0.65119,45721.0,45711.0,0.13256164]
[1641411747242,0.65119,45721.0,45714.0,0.054691]
[1641411748241,0.64619,45721.0,45714.0,0.054691]
[1641411749583,0.64619,45721.0,45716.0,0.35946979]
[1641411749780,0.64619,45721.0,45716.0,0.41415779]
[1641411750181,0.64619,45721.0,45717.0,0.17092389]
[1641411750384,0.64619,45721.0,45718.0,0.11233907]
[1641411750581,0.64619,45721.0,45720.0,0.1775865]
[1641411752934,0.64619,45721.0,45720.0,0.76101829]
[1641411753135,0.64619,45721.0,45720.0,1.27731647]
[1641411753333,0.64619,45721.0,45720.0,1.09286487]
[1641411753533,0.64619,45721.0,45720.0,1.34811315]
[1641411753735,0.64619,45721.0,45720.0,1.36317672]
[1641411754137,0.64619,45721.0,45720.0,1.09286487]
[1641411754735,0.64619,45721.0,45720.0,0.94286487]
[1641411755935,0.64619,45721.0,45720.0,2.18031371]
[1641411756578,0.64619,45721.0,45720.0,1.83031371]
[1641411758379,0.64619,45721.0,45720.0,2.16631371]
[1641411760080,0.64619,45721.0,45720.0,2.51631371]
[1641411761527,0.64619,45721.0,45720.0,2.46468508]
[1641411762129,0.64119,45721.0,45720.0,2.46468508]
[1641411763127,0.64119,45721.0,45720.0,2.56468508]
[1641411763330,0.64119,45721.0,45720.0,2.61468508]
[1641411764379,0.64119,45721.0,45720.0,2.56468508]
[1641411764780,0.64119,45721.0,45720.0,2.46468508]
[1641411771780,0.64119,45721.0,45720.0,1.93709858]
[1641411771980,0.64119,45721.0,45720.0,1.93588084]
[1641411772180,0.64119,45721.0,45720.0,1.57344884]
[1641411772181,1.56119,45721.0,45720.0,1.57344884]
[1641411772378,1.923622,45721.0,45720.0,1.57344884]
[1641411772576,1.923622,45721.0,45720.0,0.336]
[1641411773180,2.37644991,45721.0,45720.0,0.336]
[1641411773378,2.81644991,45721.0,45720.0,0.0001]
[1641411773583,1.47,45720.0,45703.0,0.0012186]
[1641411773779,0.054704,45712.0,45700.0,0.05]
[1641411774178,0.30111344,45714.0,45700.0,0.05]
[1641411774379,0.05,45715.0,45706.0,0.0547]
[1641411774578,0.44199889,45713.0,45706.0,0.0547]
[1641411775733,0.43699889,45713.0,45706.0,0.0547]
[1641411775933,0.0547017,45712.0,45706.0,0.0547]
[1641411776333,0.49170089,45713.0,45700.0,0.27705415]
[1641411776334,0.53699889,45713.0,45700.0,0.27705415]
[1641411776534,0.1,45711.0,45697.0,0.00126215]
[1641411776737,0.1,45711.0,45693.0,0.109421]
[1641411776738,0.00124771,45703.0,45693.0,0.109421]
[1641411776932,0.00124771,45703.0,45690.0,0.00126533]
[1641411777135,0.00124771,45703.0,45691.0,0.362432]
[1641411777333,0.35702081,45701.0,45696.0,0.054711]
[1641411777532,0.35702081,45701.0,45695.0,0.14682414]
[1641411777932,0.35702081,45701.0,45690.0,0.11069333]
[1641411778332,0.00124771,45703.0,45694.0,0.14419559]
[1641411778531,0.00124771,45703.0,45690.0,0.11069333]
[1641411778736,0.00124771,45703.0,45695.0,0.11854865]
[1641411779375,0.00124771,45703.0,45696.0,0.15221459]
[1641411780283,0.00124771,45703.0,45697.0,0.05471]
[1641411780677,0.20960132,45702.0,45697.0,0.05471]
[1641411780876,0.20960132,45702.0,45693.0,0.109419]
[1641411781077,0.20960132,45702.0,45692.0,0.14585529]
[1641411781078,0.00124771,45703.0,45692.0,0.52410216]
[1641411781280,0.109416,45717.0,45697.0,0.054711]
[1641411781281,0.10941056,45715.0,45697.0,0.054711]
[1641411781477,0.10941056,45715.0,45698.0,0.18354149]
[1641411781478,0.9166,45711.0,45698.0,0.18354149]
[1641411781678,0.74119,45710.0,45697.0,0.054711]
[1641411781878,0.74119,45710.0,45693.0,0.00033481]
[1641411782280,0.05470931,45707.0,45697.0,0.054711]
[1641411783041,0.72170695,45708.0,45697.0,0.054711]
[1641411783540,0.05470922,45707.0,45697.0,0.054711]
[1641411783844,0.43169629,45708.0,45697.0,0.054711]
[1641411784541,0.48169629,45708.0,45697.0,0.054711]
[1641411784941,0.054713,45707.0,45694.0,0.109416]
[1641411785142,0.054713,45705.0,45694.0,0.109416]